[Event "8th Palmanova Open 2019"]
[Site "Palmanova"]
[Date "2019.12.06"]
[Round "1.1"]
[White "Kobal, Sasa"]
[Black "Savanovic, Aleksandar"]
[Result "1-0"]
[ECO "D30"]
[WhiteElo "2100"]
[BlackElo "2420"]
[Annotator "NA"]
[PlyCount "33"]
[EventDate "2019.12.06"]
[EventType "swiss"]
[EventCountry "ITA"]
[SourceTitle "playchess.com"]
[Source "ChessBase"]
[SourceQuality "1"]
[TimeControl "5400+30"]

1. d4 {[%emt 0:00:00]} f5 {[%emt 0:00:24]} 2. Nf3 {[%emt 0:01:13]} Nf6 {[%emt 0:00:11]} 3. b3 {[%emt 0:02:11]} e6 {[%emt 0:02:08]} 4. Bb2 {[%emt 0:01:08]} d5 {[%emt 0:09:10]} 5. Nbd2 {[%emt 0:03:17]} Bd6 {[%emt 0:03:53]} 6. e3 {[%emt 0:03:35]} O-O {[%emt 0:00:14]} 7. c4 {[%emt 0:05:36]} c6 {[%emt 0:00:09]} 8. Bd3 {[%emt 0:02:42]} Ne4 {[%emt 0:04:30]} 9. O-O {[%emt 0:02:34]} Nd7 {[%emt 0:00:35]} 10. Ne5 {[%emt 0:05:02]} Qf6 {[%emt 0:04:06]} 11. f4 {[%emt 0:11:10]} g5 {[%emt 0:11:34]} 12. Bxe4 {[%emt 0:04:37]} fxe4 {[%emt 0:00:10]} 13. Qh5 {[%emt 0:11:45]} Be7 {[%emt 0:00:12]} 14. fxg5 {[%emt 0:02:57]} Qxg5 {[%emt 0:09:44]} 15. Rxf8+ {[%emt 0:00:57]} Nxf8 {[%emt 0:01:11]} 16. Qf7+ {[%emt 0:00:04]} Kh8 {[%emt 0:00:06]} 17. Qxf8+ {[%emt 0:00:03]} 1-0

[Event "8th Palmanova Open 2019"]
[Site "Palmanova"]
[Date "2019.12.06"]
[Round "1.3"]
[White "Gregoric, Andraz"]
[Black "Lekic, Dusan"]
[Result "0-1"]
[ECO "C77"]
[WhiteElo "2036"]
[BlackElo "2347"]
[Annotator "RC"]
[PlyCount "140"]
[EventDate "2019.12.06"]
[EventType "swiss"]
[EventCountry "ITA"]
[SourceTitle "playchess.com"]
[Source "ChessBase"]
[SourceQuality "1"]
[TimeControl "5400+30"]

1. e4 {[%emt 0:00:00]} e5 {[%emt 0:00:00]} 2. Nf3 {[%emt 0:00:00]} Nc6 {[%emt 0:00:00]} 3. Bb5 {[%emt 0:00:00]} a6 {[%emt 0:00:05]} 4. Ba4 {[%emt 0:00:00]} Nf6 {[%emt 0:00:07]} 5. d3 {[%emt 0:00:10]} d6 {[%emt 0:01:34]} 6. h3 {[%emt 0:00:21]} b5 {[%emt 0:01:28]} 7. Bb3 {[%emt 0:00:05]} Na5 {[%emt 0:00:30]} 8. O-O {[%emt 0:01:07]} Be7 {[%emt 0:02:14]} 9. Nc3 {[%emt 0:06:14]} Bb7 {[%emt 0:06:42]} 10. Ne2 {[%emt 0:08:28]} O-O {[%emt 0:08:43]} 11. Ng3 {[%emt 0:02:08]} c5 {[%emt 0:00:11]} 12. c3 {[%emt 0:00:53]} Nxb3 {[%emt 0:04:39]} 13. axb3 {[%emt 0:00:11]} Re8 {[%emt 0:12:37]} 14. c4 {[%emt 0:05:19]} Bf8 {[%emt 0:07:01]} 15. Bg5 {[%emt 0:02:11]} h6 {[%emt 0:01:37]} 16. Be3 {[%emt 0:02:08]} bxc4 {[%emt 0:05:53]} 17. bxc4 {[%emt 0:00:14]} Bc8 {[%emt 0:00:54]} 18. Qd2 {[%emt 0:03:03]} Rb8 {[%emt 0:00:18]} 19. Rfb1 {[%emt 0:04:51]} Re7 {[%emt 0:03:20]} 20. Nh4 {[%emt 0:20:11]} Reb7 {[%emt 0:01:14]} 21. Nhf5 {[%emt 0:00:10]} Rb3 {[%emt 0:01:04]} 22. Qc2 {[%emt 0:04:28]} Kh7 {[%emt 0:02:26]} 23. Bd2 {[%emt 0:01:13]} Ne8 {[%emt 0:05:01]} 24. Ne3 {[%emt 0:02:18]} g6 {[%emt 0:01:32]} 25. Ra3 {[%emt 0:01:05]} Qb6 {[%emt 0:02:43]} 26. Ba5 {[%emt 0:02:40]} Qb7 {[%emt 0:00:11]} 27. Rxb3 {[%emt 0:00:05]} Qxb3 {[%emt 0:00:08]} 28. Qxb3 {[%emt 0:01:12]} Rxb3 {[%emt 0:00:09]} 29. Bc3 {[%emt 0:00:07]} Nc7 {[%emt 0:04:27]} 30. Kf1 {[%emt 0:01:36]} Ne6 {[%emt 0:00:27]} 31. Nd5 {[%emt 0:04:06]} Nf4 {[%emt 0:04:06]} 32. Nxf4 {[%emt 0:00:57]} exf4 {[%emt 0:00:10]} 33. Ne2 {[%emt 0:00:06]} f3 {[%emt 0:00:37]} 34. Nf4 {[%emt 0:00:33]} fxg2+ {[%emt 0:02:09]} 35. Kxg2 {[%emt 0:00:04]} Bb7 {[%emt 0:05:48]} 36. Kf1 {[%emt 0:03:54]} Bg7 {[%emt 0:00:52]} 37. Bxg7 {[%emt 0:00:07]} Kxg7 {[%emt 0:00:06]} 38. Ke2 {[%emt 0:00:08]} g5 {[%emt 0:00:31]} 39. Ng2 {[%emt 0:01:00]} f5 {[%emt 0:02:47]} 40. f3 {[%emt 0:00:20]} Bc8 {[%emt 0:01:13]} 41. h4 {[%emt 0:00:19]} fxe4 {[%emt 0:00:26]} 42. fxe4 {[%emt 0:00:05]} Bh3 {[%emt 0:02:04]} 43. Ne3 {[%emt 0:00:05]} gxh4 {[%emt 0:00:19]} 44. Kd2 {[%emt 0:01:27]} Be6 {[%emt 0:01:14]} 45. Kc2 {[%emt 0:00:18]} Rb8 {[%emt 0:01:22]} 46. Ng2 {[%emt 0:02:49]} h3 {[%emt 0:01:16]} 47. Nf4 {[%emt 0:00:10]} Kf6 {[%emt 0:00:55]} 48. Nxe6 {[%emt 0:01:43]} Kxe6 {[%emt 0:00:09]} 49. Rh1 {[%emt 0:00:05]} h5 {[%emt 0:00:31]} 50. Rxh3 {[%emt 0:00:12]} Rh8 {[%emt 0:00:05]} 51. Kc3 {[%emt 0:01:38]} h4 {[%emt 0:01:32]} 52. d4 {[%emt 0:01:56]} a5 {[%emt 0:00:28]} 53. Kd3 {[%emt 0:01:49]} cxd4 {[%emt 0:00:40]} 54. Kxd4 {[%emt 0:00:05]} Rh5 {[%emt 0:00:27]} 55. Ke3 {[%emt 0:05:54]} Ke5 {[%emt 0:00:25]} 56. b3 {[%emt 0:02:09]} Rh7 {[%emt 0:00:14]} 57. Rh2 {[%emt 0:00:40]} h3 {[%emt 0:00:12]} 58. Kf3 {[%emt 0:00:07]} Kd4 {[%emt 0:00:28]} 59. Kf4 {[%emt 0:01:40]} Rh8 {[%emt 0:04:33]} 60. Kf5 {[%emt 0:01:01]} Kc3 {[%emt 0:02:35]} 61. Ke6 {[%emt 0:05:13]} Rh6+ {[%emt 0:00:40]} 62. Kd5 {[%emt 0:00:05]} Kxb3 {[%emt 0:00:08]} 63. c5 {[%emt 0:00:07]} dxc5 {[%emt 0:00:13]} 64. Kxc5 {[%emt 0:00:04]} a4 {[%emt 0:00:15]} 65. e5 {[%emt 0:00:02]} a3 {[%emt 0:00:06]} 66. e6 {[%emt 0:00:04]} a2 {[%emt 0:00:38]} 67. Rh1 {[%emt 0:01:58]} h2 {[%emt 0:00:29]} 68. e7 {[%emt 0:00:14]} Re6 {[%emt 0:00:12]} 69. Kb5 {[%emt 0:01:28]} Rxe7 {[%emt 0:00:25]} 70. Rxh2 {[%emt 0:00:04]} Re5+ {[%emt 0:00:11]} 0-1

[Event "8th Palmanova Open 2019"]
[Site "Palmanova"]
[Date "2019.12.06"]
[Round "1.4"]
[White "Beletic, Daniel"]
[Black "Herega, Nejc"]
[Result "1-0"]
[ECO "D02"]
[WhiteElo "2302"]
[BlackElo "2009"]
[Annotator "NA"]
[PlyCount "81"]
[EventDate "2019.12.06"]
[EventType "swiss"]
[EventCountry "ITA"]
[SourceTitle "playchess.com"]
[Source "ChessBase"]
[SourceQuality "1"]
[TimeControl "5400+30"]

1. d4 {[%emt 0:00:00]} Nf6 {[%emt 0:00:00]} 2. Nf3 {[%emt 0:00:05]} e6 {[%emt 0:01:01]} 3. Bf4 {[%emt 0:00:43]} d5 {[%emt 0:01:14]} 4. Nbd2 {[%emt 0:00:17]} Bd6 {[%emt 0:00:27]} 5. Bg3 {[%emt 0:00:08]} O-O {[%emt 0:00:39]} 6. e3 {[%emt 0:00:13]} b6 {[%emt 0:01:52]} 7. Bd3 {[%emt 0:00:46]} Ba6 {[%emt 0:01:26]} 8. Bxa6 {[%emt 0:00:31]} Nxa6 {[%emt 0:00:09]} 9. Qe2 {[%emt 0:00:03]} Nb4 {[%emt 0:01:53]} 10. O-O {[%emt 0:00:31]} c5 {[%emt 0:01:26]} 11. c3 {[%emt 0:04:07]} Nc6 {[%emt 0:00:28]} 12. Rad1 {[%emt 0:00:53]} Bxg3 {[%emt 0:07:08]} 13. hxg3 {[%emt 0:01:00]} Qc7 {[%emt 0:00:08]} 14. Rfe1 {[%emt 0:00:26]} Rad8 {[%emt 0:04:30]} 15. Qb5 {[%emt 0:02:35]} a6 {[%emt 0:05:39]} 16. Qxa6 {[%emt 0:02:00]} Ra8 {[%emt 0:01:30]} 17. Qb5 {[%emt 0:00:14]} c4 {[%emt 0:01:26]} 18. Ne5 {[%emt 0:00:49]} Nxe5 {[%emt 0:02:29]} 19. dxe5 {[%emt 0:00:02]} Ra5 {[%emt 0:03:25]} 20. Qb4 {[%emt 0:00:53]} Nd7 {[%emt 0:03:50]} 21. Qe7 {[%emt 0:04:22]} Rxa2 {[%emt 0:05:45]} 22. e4 {[%emt 0:00:46]} Qd8 {[%emt 0:05:12]} 23. Qd6 {[%emt 0:02:04]} Nc5 {[%emt 0:04:06]} 24. Qxd8 {[%emt 0:01:32]} Rxd8 {[%emt 0:00:03]} 25. Nxc4 {[%emt 0:00:18]} b5 {[%emt 0:06:38]} 26. Nd6 {[%emt 0:00:25]} Rxb2 {[%emt 0:02:13]} 27. exd5 {[%emt 0:00:10]} Kf8 {[%emt 0:01:09]} 28. dxe6 {[%emt 0:00:24]} fxe6 {[%emt 0:00:34]} 29. Rb1 {[%emt 0:02:55]} Rxb1 {[%emt 0:03:15]} 30. Rxb1 {[%emt 0:00:03]} Nd3 {[%emt 0:00:54]} 31. f4 {[%emt 0:01:28]} g5 {[%emt 0:04:30]} 32. Nxb5 {[%emt 0:00:27]} gxf4 {[%emt 0:03:26]} 33. gxf4 {[%emt 0:00:09]} Ke7 {[%emt 0:00:14]} 34. Nd4 {[%emt 0:00:19]} Rd7 {[%emt 0:02:30]} 35. g3 {[%emt 0:00:40]} Rc7 {[%emt 0:01:46]} 36. Rb6 {[%emt 0:00:12]} Rxc3 {[%emt 0:00:54]} 37. Rb7+ {[%emt 0:00:23]} Ke8 {[%emt 0:01:01]} 38. Nxe6 {[%emt 0:00:59]} Nc1 {[%emt 0:05:40]} 39. Ng7+ {[%emt 0:01:42]} Kf8 {[%emt 0:00:41]} 40. Nf5 {[%emt 0:00:07]} Rc5 {[%emt 0:02:01]} 41. Rxh7 {[%emt 1:14:49]} 1-0

[Event "8th Palmanova Open 2019"]
[Site "Palmanova"]
[Date "2019.12.06"]
[Round "1.6"]
[White "Dappiano, Andrea"]
[Black "Bozza, Gabriele"]
[Result "1/2-1/2"]
[ECO "C30"]
[WhiteElo "2258"]
[BlackElo "1948"]
[Annotator "NA"]
[PlyCount "60"]
[EventDate "2019.12.06"]
[EventType "swiss"]
[EventCountry "ITA"]
[SourceTitle "playchess.com"]
[Source "ChessBase"]
[SourceQuality "1"]
[TimeControl "5400+30"]

1. e4 {[%emt 0:00:00]} e5 {[%emt 0:00:00]} 2. Bc4 {[%emt 0:00:00]} Nf6 {[%emt 0:00:07]} 3. d3 {[%emt 0:00:00]} Nc6 {[%emt 0:00:15]} 4. Nc3 {[%emt 0:00:03]} Bc5 {[%emt 0:00:39]} 5. f4 {[%emt 0:00:16]} d6 {[%emt 0:00:27]} 6. Nf3 {[%emt 0:00:21]} Ng4 {[%emt 0:05:00]} 7. Qe2 {[%emt 0:00:51]} exf4 {[%emt 0:00:12]} 8. Bxf4 {[%emt 0:02:28]} Nge5 {[%emt 0:00:08]} 9. Nxe5 {[%emt 0:09:37]} Nxe5 {[%emt 0:00:22]} 10. Bxe5 {[%emt 0:08:31]} dxe5 {[%emt 0:00:07]} 11. Qh5 {[%emt 0:06:38]} O-O {[%emt 0:01:56]} 12. Qxe5 {[%emt 0:04:28]} Bd4 {[%emt 0:01:30]} 13. Qg3 {[%emt 0:03:30]} c6 {[%emt 0:01:12]} 14. Nd1 {[%emt 0:03:21]} b5 {[%emt 0:03:12]} 15. Bb3 {[%emt 0:00:04]} a5 {[%emt 0:02:37]} 16. c3 {[%emt 0:00:42]} a4 {[%emt 0:04:05]} 17. Bc2 {[%emt 0:00:12]} Qa5 {[%emt 0:06:11]} 18. Ke2 {[%emt 0:18:44]} Ba7 {[%emt 0:01:30]} 19. Ne3 {[%emt 0:01:00]} b4 {[%emt 0:06:14]} 20. c4 {[%emt 0:01:46]} Bd4 {[%emt 0:07:43]} 21. Rab1 {[%emt 0:01:31]} b3 {[%emt 0:03:50]} 22. axb3 {[%emt 0:00:53]} axb3 {[%emt 0:00:10]} 23. Bxb3 {[%emt 0:00:58]} Rb8 {[%emt 0:00:50]} 24. Bc2 {[%emt 0:02:19]} Rxb2 {[%emt 0:00:11]} 25. Rxb2 {[%emt 0:00:34]} Bxb2 {[%emt 0:00:07]} 26. Rb1 {[%emt 0:03:10]} Bd4 {[%emt 0:04:19]} 27. Bb3 {[%emt 0:10:54]} Qh5+ {[%emt 0:14:14]} 28. Kd2 {[%emt 0:02:31]} Qa5+ {[%emt 0:01:36]} 29. Ke2 {[%emt 0:00:09]} Qh5+ {[%emt 0:00:07]} 30. Kd2 {[%emt 0:06:03]} Qa5+ {[%emt 0:36:09]} 1/2-1/2

[Event "8th Palmanova Open 2019"]
[Site "Palmanova"]
[Date "2019.12.06"]
[Round "1.7"]
[White "Bordin, Silvia"]
[Black "Margl, Roland"]
[Result "0-1"]
[ECO "B12"]
[WhiteElo "1905"]
[BlackElo "2249"]
[Annotator "NA"]
[PlyCount "54"]
[EventDate "2019.12.06"]
[EventType "swiss"]
[EventCountry "ITA"]
[SourceTitle "playchess.com"]
[Source "ChessBase"]
[SourceQuality "1"]
[TimeControl "5400+30"]

1. e4 {[%emt 0:00:00]} c6 {[%emt 0:00:00]} 2. d4 {[%emt 0:00:00]} d5 {[%emt 0:00:00]} 3. e5 {[%emt 0:00:12]} Bf5 {[%emt 0:00:00]} 4. h4 {[%emt 0:00:22]} h5 {[%emt 0:00:00]} 5. c4 {[%emt 0:00:44]} e6 {[%emt 0:00:04]} 6. Nc3 {[%emt 0:00:33]} Ne7 {[%emt 0:00:43]} 7. cxd5 {[%emt 0:01:26]} Nxd5 {[%emt 0:01:34]} 8. Nge2 {[%emt 0:02:51]} Be7 {[%emt 0:01:05]} 9. Nxd5 {[%emt 0:01:22]} cxd5 {[%emt 0:06:17]} 10. Ng3 {[%emt 0:04:33]} Bg6 {[%emt 0:01:30]} 11. Be2 {[%emt 0:01:01]} Nc6 {[%emt 0:05:11]} 12. Nxh5 {[%emt 0:21:12]} Bxh5 {[%emt 0:12:21]} 13. Bxh5 {[%emt 0:00:17]} g6 {[%emt 0:00:06]} 14. Be2 {[%emt 0:00:18]} Rxh4 {[%emt 0:00:09]} 15. Rxh4 {[%emt 0:01:23]} Bb4+ {[%emt 0:00:08]} 16. Bd2 {[%emt 0:01:56]} Qxh4 {[%emt 0:01:21]} 17. Bxb4 {[%emt 0:01:15]} Nxb4 {[%emt 0:00:06]} 18. Qa4+ {[%emt 0:01:48]} Nc6 {[%emt 0:00:05]} 19. Bb5 {[%emt 0:05:59]} Kf8 {[%emt 0:02:57]} 20. Rd1 {[%emt 0:01:45]} Rc8 {[%emt 0:01:05]} 21. Rc1 {[%emt 0:13:39]} Qe4+ {[%emt 0:05:28]} 22. Kf1 {[%emt 0:01:36]} Kg7 {[%emt 0:00:33]} 23. Bxc6 {[%emt 0:01:59]} Rh8 {[%emt 0:01:59]} 24. Kg1 {[%emt 0:09:27]} Qh4 {[%emt 0:00:20]} 25. Kf1 {[%emt 0:04:30]} Qh1+ {[%emt 0:00:05]} 26. Ke2 {[%emt 0:00:05]} Qxc1 {[%emt 0:00:04]} 27. Be8 {[%emt 0:00:43]} Qxb2+ {[%emt 0:00:15]} 0-1

[Event "8th Palmanova Open 2019"]
[Site "Palmanova"]
[Date "2019.12.06"]
[Round "1.9"]
[White "Bisaro, Andrea"]
[Black "Ghersinich, Enrico"]
[Result "0-1"]
[ECO "A58"]
[WhiteElo "1845"]
[BlackElo "2157"]
[Annotator "NA"]
[PlyCount "84"]
[EventDate "2019.12.06"]
[EventType "swiss"]
[EventCountry "ITA"]
[SourceTitle "playchess.com"]
[Source "ChessBase"]
[SourceQuality "1"]
[TimeControl "5400+30"]

1. d4 {[%emt 0:00:00]} Nf6 {[%emt 0:00:00]} 2. c4 {[%emt 0:00:00]} c5 {[%emt 0:00:10]} 3. d5 {[%emt 0:00:00]} b5 {[%emt 0:00:15]} 4. cxb5 {[%emt 0:00:05]} a6 {[%emt 0:00:22]} 5. bxa6 {[%emt 0:00:23]} g6 {[%emt 0:00:29]} 6. Nc3 {[%emt 0:00:23]} Bg7 {[%emt 0:00:27]} 7. e4 {[%emt 0:00:53]} O-O {[%emt 0:01:30]} 8. Nf3 {[%emt 0:01:04]} Qa5 {[%emt 0:01:03]} 9. Bd3 {[%emt 0:06:51]} Nxd5 {[%emt 0:00:43]} 10. exd5 {[%emt 0:01:55]} Bxc3+ {[%emt 0:00:58]} 11. Bd2 {[%emt 0:00:49]} Bxd2+ {[%emt 0:00:32]} 12. Qxd2 {[%emt 0:00:20]} Qxd2+ {[%emt 0:01:08]} 13. Kxd2 {[%emt 0:01:06]} Bxa6 {[%emt 0:01:38]} 14. Rhe1 {[%emt 0:01:20]} Re8 {[%emt 0:05:03]} 15. d6 {[%emt 0:19:47]} Nc6 {[%emt 0:09:47]} 16. Bxa6 {[%emt 0:01:32]} Rxa6 {[%emt 0:00:09]} 17. dxe7 {[%emt 0:00:08]} f6 {[%emt 0:04:32]} 18. Kc3 {[%emt 0:01:17]} Nxe7 {[%emt 0:04:27]} 19. Kc4 {[%emt 0:00:30]} Kf7 {[%emt 0:03:38]} 20. a3 {[%emt 0:17:25]} Rb8 {[%emt 0:02:32]} 21. Re2 {[%emt 0:01:16]} d5+ {[%emt 0:03:35]} 22. Kxc5 {[%emt 0:10:15]} Rc6+ {[%emt 0:01:05]} 23. Kd4 {[%emt 0:00:15]} Rb3 {[%emt 0:00:08]} 24. Rxe7+ {[%emt 0:00:06]} Kxe7 {[%emt 0:00:13]} 25. Kxd5 {[%emt 0:00:05]} Rd6+ {[%emt 0:06:03]} 26. Kc5 {[%emt 0:00:12]} Rxb2 {[%emt 0:00:09]} 27. Nd4 {[%emt 0:00:19]} Rxf2 {[%emt 0:01:22]} 28. a4 {[%emt 0:01:19]} Rxg2 {[%emt 0:00:13]} 29. Nb5 {[%emt 0:07:27]} Rc2+ {[%emt 0:02:18]} 30. Kb4 {[%emt 0:00:24]} Rdd2 {[%emt 0:00:58]} 31. Nc3 {[%emt 0:03:01]} Rxh2 {[%emt 0:00:48]} 32. a5 {[%emt 0:00:08]} Rb2+ {[%emt 0:00:52]} 33. Kc5 {[%emt 0:02:34]} Rhc2 {[%emt 0:01:15]} 34. Kd4 {[%emt 0:00:58]} Rd2+ {[%emt 0:02:43]} 35. Kc4 {[%emt 0:00:10]} Rd8 {[%emt 0:00:13]} 36. a6 {[%emt 0:07:24]} Rc8+ {[%emt 0:00:24]} 37. Kd4 {[%emt 0:01:25]} Rb4+ {[%emt 0:00:49]} 38. Kd3 {[%emt 0:00:31]} Rb3 {[%emt 0:00:19]} 39. Rc1 {[%emt 0:00:05]} Ra3 {[%emt 0:00:53]} 40. a7 {[%emt 0:01:27]} Kf7 {[%emt 0:00:46]} 41. Kd4 {[%emt 0:00:56]} Rxa7 {[%emt 0:00:26]} 42. Rh1 {[%emt 0:00:05]} Rd7+ {[%emt 0:00:35]} 0-1

[Event "8th Palmanova Open 2019"]
[Site "Palmanova"]
[Date "2019.12.06"]
[Round "1.10"]
[White "Belli, Giorgio"]
[Black "Maione, Melissa"]
[Result "1-0"]
[ECO "B78"]
[WhiteElo "2136"]
[BlackElo "1836"]
[Annotator "NA"]
[PlyCount "117"]
[EventDate "2019.12.06"]
[EventType "swiss"]
[EventCountry "ITA"]
[SourceTitle "playchess.com"]
[Source "ChessBase"]
[SourceQuality "1"]
[TimeControl "5400+30"]

1. e4 {[%emt 0:00:00]} c5 {[%emt 0:00:00]} 2. Nf3 {[%emt 0:00:00]} d6 {[%emt 0:00:00]} 3. d4 {[%emt 0:00:00]} cxd4 {[%emt 0:00:00]} 4. Nxd4 {[%emt 0:00:00]} Nf6 {[%emt 0:00:06]} 5. Nc3 {[%emt 0:00:11]} g6 {[%emt 0:00:10]} 6. Be3 {[%emt 0:00:29]} Bg7 {[%emt 0:00:19]} 7. f3 {[%emt 0:00:08]} O-O {[%emt 0:00:17]} 8. Qd2 {[%emt 0:00:08]} Nc6 {[%emt 0:00:43]} 9. Bc4 {[%emt 0:00:06]} Bd7 {[%emt 0:00:53]} 10. O-O-O {[%emt 0:00:08]} Rc8 {[%emt 0:01:41]} 11. Bb3 {[%emt 0:00:06]} Nxd4 {[%emt 0:01:38]} 12. Bxd4 {[%emt 0:00:12]} a5 {[%emt 0:00:58]} 13. a3 {[%emt 0:17:58]} b5 {[%emt 0:00:45]} 14. Nd5 {[%emt 0:00:09]} Nxd5 {[%emt 0:00:48]} 15. Bxg7 {[%emt 0:00:06]} Kxg7 {[%emt 0:00:25]} 16. exd5 {[%emt 0:00:54]} Bf5 {[%emt 0:05:04]} 17. g4 {[%emt 0:01:53]} a4 {[%emt 0:01:44]} 18. Bxa4 {[%emt 0:03:19]} bxa4 {[%emt 0:05:31]} 19. gxf5 {[%emt 0:00:13]} Qd7 {[%emt 0:00:27]} 20. fxg6 {[%emt 0:06:42]} fxg6 {[%emt 0:01:23]} 21. Qd4+ {[%emt 0:06:43]} Kg8 {[%emt 0:04:05]} 22. Qe4 {[%emt 0:03:09]} Rf5 {[%emt 0:06:18]} 23. Rhe1 {[%emt 0:04:24]} Re5 {[%emt 0:09:30]} 24. Qg4 {[%emt 0:01:31]} Rf5 {[%emt 0:10:38]} 25. Re6 {[%emt 0:01:01]} Kf7 {[%emt 0:08:28]} 26. Rde1 {[%emt 0:02:10]} Re8 {[%emt 0:01:14]} 27. Qh3 {[%emt 0:00:53]} Kg7 {[%emt 0:01:35]} 28. Qh4 {[%emt 0:01:18]} Rf7 {[%emt 0:01:16]} 29. Qg4 {[%emt 0:01:37]} Qb5 {[%emt 0:06:14]} 30. Qd4+ {[%emt 0:01:59]} Kg8 {[%emt 0:00:55]} 31. h4 {[%emt 0:00:10]} Rf5 {[%emt 0:03:41]} 32. Rxe7 {[%emt 0:08:58]} Rxe7 {[%emt 0:00:15]} 33. Rxe7 {[%emt 0:00:06]} Qf1+ {[%emt 0:00:18]} 34. Qd1 {[%emt 0:00:41]} Qxd1+ {[%emt 0:00:50]} 35. Kxd1 {[%emt 0:00:05]} Rxd5+ {[%emt 0:00:05]} 36. Kc1 {[%emt 0:01:06]} h6 {[%emt 0:01:06]} 37. Re4 {[%emt 0:00:16]} Ra5 {[%emt 0:00:52]} 38. Re6 {[%emt 0:00:19]} Kf7 {[%emt 0:00:13]} 39. Rxd6 {[%emt 0:00:04]} h5 {[%emt 0:01:14]} 40. Kd2 {[%emt 0:00:43]} g5 {[%emt 0:00:48]} 41. hxg5 {[%emt 0:01:13]} Rxg5 {[%emt 0:00:07]} 42. Ra6 {[%emt 0:01:39]} h4 {[%emt 0:00:10]} 43. Rh6 {[%emt 0:00:08]} Rg2+ {[%emt 0:00:31]} 44. Kc3 {[%emt 0:00:33]} Rh2 {[%emt 0:00:08]} 45. Ra6 {[%emt 0:02:56]} Rf2 {[%emt 0:00:50]} 46. Rxa4 {[%emt 0:00:39]} h3 {[%emt 0:00:09]} 47. Rh4 {[%emt 0:00:13]} h2 {[%emt 0:00:12]} 48. b4 {[%emt 0:05:22]} Rxf3+ {[%emt 0:00:04]} 49. Kc4 {[%emt 0:01:50]} Rf2 {[%emt 0:00:11]} 50. c3 {[%emt 0:00:15]} Kg6 {[%emt 0:00:11]} 51. Rh8 {[%emt 0:03:12]} Kg7 {[%emt 0:00:29]} 52. Rh3 {[%emt 0:00:06]} Kf6 {[%emt 0:00:13]} 53. b5 {[%emt 0:00:19]} Ke6 {[%emt 0:00:32]} 54. a4 {[%emt 0:00:18]} Kd6 {[%emt 0:01:20]} 55. Rh6+ {[%emt 0:01:31]} Kc7 {[%emt 0:00:33]} 56. a5 {[%emt 0:00:21]} Rf4+ {[%emt 0:00:34]} 57. Kc5 {[%emt 0:00:30]} Rf5+ {[%emt 0:00:10]} 58. Kb4 {[%emt 0:00:06]} Rf4+ {[%emt 0:01:06]} 59. c4 {[%emt 0:00:06]} 1-0

[Event "8th Palmanova Open 2019"]
[Site "Palmanova"]
[Date "2019.12.07"]
[Round "2.1"]
[White "Lekic, Dusan"]
[Black "Lumachi, Gabriele"]
[Result "1/2-1/2"]
[ECO "D06"]
[WhiteElo "2347"]
[BlackElo "2241"]
[Annotator "ChessBase"]
[PlyCount "25"]
[EventDate "2019.12.06"]
[EventType "swiss"]
[EventCountry "ITA"]
[SourceTitle "playchess.com"]
[Source "ChessBase"]
[SourceQuality "1"]
[TimeControl "5400+30"]

1. d4 {[%emt 0:00:00]} d5 {[%emt 0:00:00]} 2. c4 {[%emt 0:00:00]} c5 {[%emt 0:00:00]} 3. cxd5 {[%emt 0:00:38]} Qxd5 {[%emt 0:00:09]} 4. Nf3 {[%emt 0:00:26]} cxd4 {[%emt 0:00:12]} 5. Nc3 {[%emt 0:00:19]} Qa5 {[%emt 0:00:08]} 6. Nxd4 {[%emt 0:00:10]} Nf6 {[%emt 0:00:21]} 7. Bd2 {[%emt 0:02:47]} e5 {[%emt 0:01:03]} 8. Ndb5 {[%emt 0:04:46]} Qb6 {[%emt 0:00:30]} 9. Be3 {[%emt 0:05:08]} Bc5 {[%emt 0:00:08]} 10. Bxc5 {[%emt 0:04:30]} Qxc5 {[%emt 0:00:30]} 11. b4 {[%emt 0:03:18]} Qb6 {[%emt 0:00:07]} 12. e3 {[%emt 0:04:14]} O-O {[%emt 0:03:38]} 13. Bc4 {[%emt 0:11:38]} 1/2-1/2

[Event "8th Palmanova Open 2019"]
[Site "Palmanova"]
[Date "2019.12.07"]
[Round "2.2"]
[White "Ghersinich, Enrico"]
[Black "Beletic, Daniel"]
[Result "1-0"]
[ECO "B18"]
[WhiteElo "2157"]
[BlackElo "2302"]
[Annotator "NA"]
[PlyCount "81"]
[EventDate "2019.12.06"]
[EventType "swiss"]
[EventCountry "ITA"]
[SourceTitle "playchess.com"]
[Source "ChessBase"]
[SourceQuality "1"]
[TimeControl "5400+30"]

1. e4 {[%emt 0:00:00]} c6 {[%emt 0:00:00]} 2. d4 {[%emt 0:00:00]} d5 {[%emt 0:00:04]} 3. Nc3 {[%emt 0:03:06]} dxe4 {[%emt 0:00:21]} 4. Nxe4 {[%emt 0:00:07]} Bf5 {[%emt 0:01:35]} 5. Ng3 {[%emt 0:00:07]} Bg6 {[%emt 0:00:04]} 6. h4 {[%emt 0:00:06]} h6 {[%emt 0:00:09]} 7. Nh3 {[%emt 0:00:11]} e6 {[%emt 0:00:21]} 8. Nf4 {[%emt 0:00:23]} Bh7 {[%emt 0:00:10]} 9. Bc4 {[%emt 0:00:13]} Nf6 {[%emt 0:00:14]} 10. Qe2 {[%emt 0:03:38]} Nd5 {[%emt 0:04:30] B18: Classical Caro-Kann: 4...Bf5 sidelines} (10... Qxd4 $17 11. c3 Qd6) (10... Bd6 11. Ngh5 O-O 12. g4 Bxf4 13. Nxf4 Qxd4 14. c3 Qe4 15. f3 Qxe2+ 16. Kxe2 Nd5 17. g5 hxg5 18. hxg5 Nd7 19. Bd2 {0-1 (38) Savenkov,K (2369)-Iljiushenok,I (2533) Moscow 2019}) 11. Bxd5 {[%emt 0:08:36]} cxd5 {[%emt 0:00:21]} 12. c3 $146 {[%emt 0:00:06]} ({Predecessor:} 12. O-O Be7 13. Qg4 g5 14. Nfh5 Nc6 15. f4 Qb6 16. Ng7+ Kf8 17. c3 Kxg7 18. fxg5 Rhg8 19. Qh5 Raf8 20. Rf6 Qd8 21. Qxh6+ Kh8 22. Qxh7+ {1-0 (22) Fernandez Losada,D (2142)-Cacheiro Martinez,M (1993) Mondariz 2006}) 12... Nc6 {[%emt 0:01:42]} 13. Qg4 {[%emt 0:00:30]} g6 {[%emt 0:16:34]} 14. O-O {[%emt 0:01:44]} Qd7 {[%emt 0:07:56]} 15. Re1 {[%emt 0:06:01]} O-O-O {[%emt 0:01:00]} 16. b4 {[%emt 0:00:08]} Be7 {[%emt 0:03:15]} 17. Nd3 {[%emt 0:08:44]} g5 {[%emt 0:01:20]} 18. Nc5 {[%emt 0:00:07]} Bxc5 {[%emt 0:00:12]} 19. bxc5 {[%emt 0:00:40]} f5 {[%emt 0:01:14]} 20. Qe2 {[%emt 0:04:37]} f4 {[%emt 0:00:43]} 21. Nh5 {[%emt 0:01:16]} Bf5 {[%emt 0:00:42]} 22. a4 {[%emt 0:03:20]} Qf7 {[%emt 0:00:54]} 23. g4 {[%emt 0:04:58] [#]} fxg3 {[%emt 0:03:42]} ({Black should try} 23... Rhe8 $1 $19 24. hxg5 hxg5) 24. Nxg3 {[%emt 0:00:50]} Rde8 {[%emt 0:00:42]} 25. h5 {[%emt 0:01:43]} (25. Qf3 $17) 25... Rhf8 {[%emt 0:01:45]} 26. Ra2 {[%emt 0:02:34]} e5 {[%emt 0:05:48]} 27. Qf3 {[%emt 0:00:48]} e4 {[%emt 0:02:11]} 28. Qxf5+ {[%emt 0:05:13]} Qxf5 {[%emt 0:00:18]} 29. Nxf5 {[%emt 0:00:06]} Rxf5 {[%emt 0:00:03]} 30. Rae2 {[%emt 0:00:13]} Ref8 {[%emt 0:01:50]} 31. Be3 {[%emt 0:09:53]} Rf3 {[%emt 0:01:30]} 32. c4 {[%emt 0:02:02]} dxc4 {[%emt 0:01:48]} 33. Rc1 {[%emt 0:05:49]} Nb4 {[%emt 0:03:33]} 34. Rxc4 {[%emt 0:00:30]} Nd5 {[%emt 0:00:10]} 35. Bd2 {[%emt 0:00:06]} Rd3 {[%emt 0:01:04]} 36. Be1 $2 {[%emt 0:04:10]} (36. c6 $17) 36... Rf4 $19 {[%emt 0:02:37]} 37. Bd2 {[%emt 0:07:58]} Rg4+ {[%emt 0:10:33]} 38. Kh2 {[%emt 0:00:16]} Rh4+ {[%emt 0:00:33]} 39. Kg2 {[%emt 0:00:38]} Nf4+ {[%emt 0:05:51]} 40. Bxf4 {[%emt 0:00:08]} gxf4 {[%emt 0:00:10]} 41. Rec2 {[%emt 0:05:03]} 1-0